fUST/lending_fUST_20250718
["ID","MTS","AMOUNT","RATE_DAILY","PERIOD"]
[372961844,1752823850210,-609.03,0.00020445,2]
[372961845,1752823850220,-758.61,0.00020445,2]
[372961846,1752823850229,-495.70011298,0.00020462,2]
[372961847,1752823850239,-483.17,0.00020543,2]
[372961848,1752823850248,-511.89,0.00020543,2]
[372961849,1752823850258,-460.0,0.00020543,2]
[372961850,1752823850268,-1478.52,0.00020543,2]
[372961851,1752823850277,-10020.7409238,0.00020544,2]
[372961852,1752823850289,-836.74,0.00020544,2]
[372961853,1752823850298,-2434.15,0.00020544,2]
[372961854,1752823850307,-675.88,0.00020544,2]
[372961855,1752823850317,-1070.21524862,0.00020624,3]
[372961856,1752823850326,-2536.49272084,0.00020667,2]
[372961857,1752823850336,-1420.83,0.00020716,2]
[372961858,1752823850345,-3946.43,0.00020716,2]
[372961859,1752823850355,-460.0,0.00020718,2]
[372961860,1752823850364,-1726.21,0.00020718,2]
[372961861,1752823850373,-986.53,0.00020718,2]
[372961862,1752823850383,-474.99595428,0.00020718,2]
[372961863,1752823850392,-460.0,0.00020718,2]
[372961864,1752823850402,-1371.94,0.00020718,2]
[372961865,1752823850411,-911.92,0.00020718,2]
[372961866,1752823850420,-629.12,0.00020718,2]
[372961867,1752823850430,-638.39,0.00020718,2]
[372961868,1752823850439,-464.0,0.00020719,2]
[372961869,1752823850449,-885.0,0.00020719,2]
[372961870,1752823850459,-2855.59,0.00020719,2]
[372961871,1752823850469,-351.02166782,0.00020719,2]
[372961872,1752823850478,-609.03,0.00020719,2]
[372961873,1752823850488,-758.61,0.00020719,2]
[372961874,1752823850498,-151.0,0.000208,3]
[372961875,1752823850507,-511.89,0.00020817,2]
[372961876,1752823850517,-460.0,0.00020817,2]
[372961877,1752823850526,-1478.52,0.00020817,2]
[372961878,1752823850540,-836.74,0.00020818,2]
[372961879,1752823850550,-2434.15,0.00020818,2]
[372961880,1752823850560,-675.88,0.00020818,2]
[372961881,1752823850571,-467.071,0.000209,2]
[372961882,1752823850583,-1535.44548733,0.00020917,2]
[372961883,1752823850593,-1070.21524862,0.00020934,4]
[372961884,1752823850603,-1420.83,0.0002099,2]
[372961885,1752823850614,-3946.43,0.0002099,2]
[372961886,1752823850624,-261.22,0.00020992,2]
[372961887,1752823850634,-1726.21,0.00020992,2]
[372961888,1752823850643,-986.53,0.00020992,2]
[372961889,1752823850653,-538.62,0.00020992,2]
[372961890,1752823850663,-1371.94,0.00020992,2]
[372961891,1752823850673,-911.92,0.00020992,2]
[372961892,1752823850683,-629.12,0.00020992,2]
[372961893,1752823850693,-638.39,0.00020992,2]
[372961894,1752823850703,-464.0,0.00020993,2]
[372961895,1752823850713,-885.0,0.00020993,2]
[372961896,1752823850722,-2855.59,0.00020993,2]
[372961897,1752823850732,-609.03,0.00020993,2]
[372961898,1752823850742,-758.61,0.00020993,2]
[372961899,1752823850751,-511.89,0.00021091,2]
[372961900,1752823850761,-460.0,0.00021091,2]
[372961901,1752823850771,-1478.52,0.00021091,2]
[372961902,1752823850780,-836.74,0.00021092,2]
[372961903,1752823850790,-2434.15,0.00021092,2]
[372961904,1752823850799,-675.88,0.00021092,2]
[372961905,1752823850808,-468.2,0.00021218,2]
[372961906,1752823850818,-1070.21524862,0.00021245,4]
[372961907,1752823850827,-1420.83,0.00021264,2]
[372961908,1752823850836,-3946.43,0.00021264,2]
[372961909,1752823850846,-1726.21,0.00021266,2]
[372961910,1752823850856,-986.53,0.00021266,2]
[372961911,1752823850866,-1371.94,0.00021266,2]
[372961912,1752823850876,-911.92,0.00021266,2]
[372961913,1752823850885,-629.12,0.00021266,2]
[372961914,1752823850895,-638.39,0.00021266,2]
[372961915,1752823850905,-464.0,0.00021267,2]
[372961916,1752823850914,-885.0,0.00021267,2]
[372961917,1752823850924,-2855.59,0.00021267,2]
[372961918,1752823850933,-609.03,0.00021267,2]
[372961919,1752823850943,-758.61,0.00021267,2]
[372961920,1752823850952,-511.89,0.00021365,2]
[372961921,1752823850962,-460.0,0.00021365,2]
[372961922,1752823850971,-1478.52,0.00021365,2]
[372961923,1752823850981,-836.74,0.00021366,2]
[372961924,1752823850990,-2434.15,0.00021366,2]
[372961925,1752823851000,-675.88,0.00021366,2]
[372961926,1752823851010,-2682.70294298,0.00021371,2]
[372961927,1752823851019,-1420.83,0.00021538,2]
[372961928,1752823851028,-3946.43,0.00021538,2]
[372961929,1752823851038,-1726.21,0.0002154,2]
[372961930,1752823851047,-986.53,0.0002154,2]
[372961931,1752823851056,-1371.94,0.0002154,2]
[372961932,1752823851065,-911.92,0.0002154,2]
[372961933,1752823851075,-629.12,0.0002154,2]
[372961934,1752823851084,-638.39,0.0002154,2]
[372961935,1752823851095,-464.0,0.00021541,2]
[372961936,1752823851105,-885.0,0.00021541,2]
[372961937,1752823851114,-2855.59,0.00021541,2]
[372961938,1752823851124,-609.03,0.00021541,2]
[372961939,1752823851133,-758.61,0.00021541,2]
[372961940,1752823851143,-1070.21524862,0.00021555,5]
[372961941,1752823851152,-164.153176,0.0002161,2]
[372961942,1752823851162,-511.89,0.00021639,2]
[372961943,1752823851171,-460.0,0.00021639,2]
[372961944,1752823851180,-1478.52,0.00021639,2]
[372961945,1752823851190,-836.74,0.0002164,2]
[372961946,1752823851199,-2434.15,0.0002164,2]
[372961947,1752823851210,-675.88,0.0002164,2]
[372961948,1752823851219,-151.0,0.000217,3]
[372961949,1752823851229,-1420.83,0.00021812,2]
[372961950,1752823851238,-3946.43,0.00021812,2]
[372961951,1752823851248,-1726.21,0.00021813,2]
[372961952,1752823851258,-986.53,0.00021813,2]
[372961953,1752823851267,-1371.94,0.00021813,2]
[372961954,1752823851277,-911.92,0.00021813,2]
[372961955,1752823851288,-629.12,0.00021813,2]
[372961956,1752823851298,-638.39,0.00021813,2]
[372961957,1752823851307,-464.0,0.00021814,2]
[372961958,1752823851317,-885.0,0.00021814,2]
[372961959,1752823851327,-2855.59,0.00021815,2]
[372961960,1752823851337,-609.03,0.00021815,2]
[372961961,1752823851348,-758.61,0.00021815,2]
[372961962,1752823851357,-1070.21524862,0.00021866,6]
[372961963,1752823851366,-500.0,0.00021868,2]
[372961964,1752823851376,-180.0,0.0002189,5]
[372961965,1752823851385,-511.89,0.00021913,2]
[372961966,1752823851395,-460.0,0.00021913,2]
[372961967,1752823851404,-1478.52,0.00021913,2]
[372961968,1752823851414,-836.74,0.00021914,2]
[372961969,1752823851424,-2434.15,0.00021914,2]
[372961970,1752823851434,-675.88,0.00021914,2]
[372961971,1752823851443,-2304.97,0.00022,7]
[372961972,1752823851453,-17990.69,0.00022,7]
[372961973,1752823851463,-220.0,0.00022,4]
[372961974,1752823851473,-5273.19,0.00022,7]
[372961975,1752823851484,-160.0,0.00022,7]
[372961976,1752823851493,-12610.43989422,0.00022,7]
[372961977,1752823851504,-476.25663856,0.00022,7]
[372961978,1752823851513,-171.0,0.00022,2]
[372961979,1752823851522,-1420.83,0.00022086,2]
[372961980,1752823851533,-3946.43,0.00022086,2]
[372961981,1752823851547,-1726.21,0.00022087,2]
[372961982,1752823851556,-986.53,0.00022087,2]
[372961983,1752823851565,-1371.94,0.00022087,2]
[372961984,1752823851575,-911.92,0.00022087,2]
[372961985,1752823851585,-629.12,0.00022087,2]
[372961986,1752823851596,-638.39,0.00022087,2]
[372961987,1752823851605,-464.0,0.00022088,2]
[372961988,1752823851617,-885.0,0.00022088,2]
[372961989,1752823851626,-2855.59,0.00022089,2]
[372961990,1752823851636,-609.03,0.00022089,2]
[372961991,1752823851646,-758.61,0.00022089,2]
[372961992,1752823851655,-1070.21524862,0.00022176,6]
[372961993,1752823851664,-511.89,0.00022187,2]
[372961994,1752823851674,-460.0,0.00022187,2]
[372961995,1752823851683,-1478.52,0.00022187,2]
[372961996,1752823851693,-836.74,0.00022188,2]
[372961997,1752823851702,-2434.15,0.00022188,2]
[372961998,1752823851712,-675.88,0.00022188,2]
[372961999,1752823851722,-1420.83,0.0002236,2]
[372962000,1752823851731,-3946.43,0.0002236,2]
[372962001,1752823851740,-1726.21,0.00022361,2]
[372962002,1752823851750,-986.53,0.00022361,2]
[372962003,1752823851759,-1371.94,0.00022361,2]
[372962004,1752823851769,-911.92,0.00022361,2]
[372962005,1752823851778,-629.12,0.00022361,2]
[372962006,1752823851788,-638.39,0.00022361,2]
[372962007,1752823851797,-464.0,0.00022362,2]
[372962008,1752823851807,-885.0,0.00022362,2]
[372962009,1752823851817,-2855.59,0.00022363,2]
[372962010,1752823851827,-609.03,0.00022363,2]
[372962011,1752823851836,-758.61,0.00022363,2]
[372962012,1752823851935,-151.0,0.000224,9]
[372962013,1752823851945,-511.89,0.00022461,2]
[372962014,1752823851955,-190.63602753,0.00022461,2]
[372962015,1752823851964,-1478.52,0.00022461,2]
[372962016,1752823851974,-836.74,0.00022462,2]
[372962017,1752823851983,-2434.15,0.00022462,2]
[372962018,1752823851993,-675.88,0.00022462,2]
[372962019,1752823852003,-150.0,0.00022473,2]
[372962020,1752823852014,-1070.21524862,0.00022486,7]
[372962021,1752823852023,-207.4,0.00022488,2]
[372962022,1752823852033,-151.0,0.00022488,2]
[372962023,1752823852042,-151.0,0.00022488,2]
[372962024,1752823852052,-151.0,0.00022488,2]
[372962025,1752823852061,-184.17851102,0.00022488,2]
[372962026,1752823852071,-151.0,0.00022488,2]
[372962027,1752823852080,-151.0,0.00022488,2]
[372962028,1752823852090,-151.0,0.00022488,2]
[372962029,1752823852102,-151.0,0.00022488,2]
[372962030,1752823852112,-3801.642,0.00022488,2]
[372962031,1752823852122,-151.0,0.00022488,2]
[372962032,1752823852132,-151.0,0.00022488,2]
[372962033,1752823852141,-151.0,0.00022488,2]
[372962034,1752823852151,-151.0,0.00022488,2]
[372962035,1752823852162,-151.0,0.00022488,2]
[372962036,1752823852171,-151.0,0.00022488,2]
[372962037,1752823852182,-151.0,0.00022488,2]
[372962038,1752823852191,-151.0,0.00022488,2]
[372962039,1752823852201,-151.0,0.00022488,2]
[372962040,1752823852210,-151.0,0.00022488,2]
[372962041,1752823852221,-151.0,0.00022488,2]
[372962042,1752823852230,-151.0,0.00022488,2]
[372962043,1752823852240,-151.0,0.00022488,2]
[372962044,1752823852250,-151.0,0.00022488,2]
[372962045,1752823852259,-151.0,0.00022488,2]
[372962046,1752823852270,-151.0,0.00022488,2]
[372962047,1752823852280,-151.0,0.00022488,2]
[372962048,1752823852290,-151.0,0.00022488,2]
[372962049,1752823852299,-159.14388846,0.00022488,2]
[372962050,1752823852309,-151.0,0.00022488,2]
[372962051,1752823852319,-25000.0,0.00022488,2]
[372962052,1752823852328,-151.0,0.00022488,2]
[372962053,1752823852338,-151.0,0.00022488,2]
[372962054,1752823852350,-24359.37799871,0.00022488,2]
[372962055,1752823852359,-151.0,0.00022488,2]
[372962056,1752823852369,-151.0,0.00022488,2]
[372962057,1752823852378,-151.0,0.00022488,2]
[372962058,1752823852390,-151.0,0.00022488,2]
[372962059,1752823852400,-151.0,0.00022488,2]
[372962060,1752823852411,-151.0,0.00022488,2]
[372962061,1752823852420,-151.0,0.00022488,2]
[372962062,1752823852429,-151.0,0.00022488,2]
[372962063,1752823852439,-3797.21989088,0.0002249,7]
[372962064,1752823852449,-40911.99,0.000225,2]
[372962065,1752823852460,-3942.302754,0.00022543,2]
[372962066,1752823852470,-1662.9171888,0.00022598,2]
[372962067,1752823852480,-314.983287,0.00022603,2]
[372962068,1752823852491,-312.13,0.00022612,2]
[372962069,1752823852503,-12500.0,0.00022628,7]
[372962070,1752823852513,-1420.83,0.00022634,2]
[372962071,1752823852522,-3946.43,0.00022634,2]
[372962072,1752823852532,-1726.21,0.00022635,2]
[372962073,1752823852546,-986.53,0.00022635,2]
[372962074,1752823852556,-1371.94,0.00022635,2]
[372962075,1752823852566,-911.92,0.00022635,2]
[372962076,1752823852575,-629.12,0.00022635,2]
[372962077,1752823852587,-638.39,0.00022635,2]
[372962078,1752823852599,-464.0,0.00022636,2]
[372962079,1752823852609,-885.0,0.00022636,2]
[372962080,1752823852619,-12500.0,0.00022637,7]
[372962081,1752823852629,-2855.59,0.00022637,2]
[372962082,1752823852638,-609.03,0.00022637,2]
[372962083,1752823852648,-758.61,0.00022637,2]
[372962084,1752823852658,-160.0,0.000227,7]
[372962085,1752823852669,-312.13,0.00022724,2]
[372962086,1752823852678,-2715.09,0.00022735,5]
[372962087,1752823852688,-511.89,0.00022735,2]
[372962088,1752823852698,-1478.52,0.00022735,2]
[372962089,1752823852707,-836.74,0.00022736,2]
[372962090,1752823852716,-2434.15,0.00022736,2]
[372962091,1752823852726,-675.88,0.00022736,2]
[372962092,1752823852735,-1039.57238948,0.0002277,2]
[372962093,1752823852745,-1070.21524862,0.00022797,7]
[372962094,1752823852754,-2715.09,0.00022835,2]
[372962095,1752823852765,-312.13,0.00022836,2]
[372962096,1752823852775,-2682.70294298,0.000229,2]
[372962097,1752823852784,-1420.98720915,0.00022908,2]
[372962098,1752823852795,-3946.51253872,0.00022908,2]
[372962099,1752823852804,-1726.22171117,0.00022909,2]
[372962100,1752823852814,-986.60938434,0.00022909,2]
[372962101,1752823852824,-1371.95321525,0.00022909,2]
[372962102,1752823852833,-912.051357,0.00022909,2]
[372962103,1752823852843,-629.12,0.00022909,2]
[372962104,1752823852853,-638.51054121,0.00022909,2]
[372962105,1752823852863,-486.59339304,0.0002291,2]
[372962106,1752823852873,-888.19631645,0.0002291,2]
[372962107,1752823852883,-2855.82258854,0.00022911,2]
[372962108,1752823852893,-609.2078463,0.00022911,2]
[372962109,1752823852902,-758.74176085,0.00022911,2]
[372962110,1752823852912,-2715.09,0.00022935,4]
[372962111,1752823852922,-164.153176,0.00022948,2]
[372962112,1752823852931,-500.0,0.00022964,2]
[372962113,1752823852942,-2007.36919205,0.0002298,2]
[372962114,1752823852952,-151.0,0.00023,8]
[372962115,1752823852962,-884.88,0.00023,2]
[372962116,1752823852973,-2304.97,0.00023,7]
[372962117,1752823852984,-17990.69,0.00023,7]
[372962118,1752823852994,-38322.07646454,0.00023,2]
[372962119,1752823853003,-512.03512283,0.00023009,2]
[372962120,1752823853013,-1478.71898298,0.00023009,2]
[372962121,1752823853023,-836.75512309,0.0002301,2]
[372962122,1752823853032,-2434.36675262,0.0002301,2]
[372962123,1752823853042,-675.90748207,0.0002301,2]
[372962124,1752823853053,-171.0,0.00023014,7]
[372962125,1752823853062,-350.66402616,0.00023021,2]
[372962126,1752823853072,-2715.09,0.00023035,4]
[372962127,1752823853083,-25000.0,0.00023036,2]
[372962128,1752823853094,-1070.21524862,0.00023107,8]
[372962129,1752823853106,-2715.09,0.00023135,5]
[372962130,1752823853115,-5273.19,0.000232,7]
[372962131,1752823853125,-2715.09,0.00023235,4]
[372962132,1752823853135,-2616.30958991,0.00023269,4]
[372962133,1752823853145,-151.22937885,0.00023288,2]
[372962134,1752823853155,-2715.09,0.00023335,7]
[372962135,1752823853165,-500.0,0.00023356,2]
[372962136,1752823853175,-40233.6432226,0.000234,7]
[372962137,1752823853185,-1070.21524862,0.00023417,9]
[372962138,1752823853195,-2715.09,0.00023435,5]
[372962139,1752823853205,-40911.99,0.000235,2]
[372962140,1752823853214,-183.0,0.00023534,10]
[372962141,1752823853224,-2715.09,0.00023535,6]
[372962142,1752823853234,-200.0,0.00023561,2]
[372962143,1752823853243,-200.0,0.00023561,2]
[372962144,1752823853253,-200.0,0.00023561,2]
[372962145,1752823853263,-200.0,0.00023561,2]
[372962146,1752823853275,-200.0,0.00023561,2]
[372962147,1752823853286,-200.0,0.00023561,2]
[372962148,1752823853295,-200.0,0.00023561,2]
[372962149,1752823853305,-200.0,0.00023561,2]
[372962150,1752823853314,-200.0,0.00023561,2]
[372962151,1752823853323,-200.0,0.00023561,2]
[372962152,1752823853333,-200.0,0.00023561,2]
[372962153,1752823853343,-200.0,0.00023561,2]
[372962154,1752823853355,-200.0,0.00023561,2]
[372962155,1752823853365,-200.0,0.00023561,2]
[372962156,1752823853375,-200.0,0.00023561,2]
[372962157,1752823853384,-200.0,0.00023561,2]
[372962158,1752823853395,-200.0,0.00023561,2]
[372962159,1752823853405,-200.0,0.00023561,2]
[372962160,1752823853415,-200.0,0.00023561,2]
[372962161,1752823853424,-200.0,0.00023561,2]
[372962162,1752823853433,-200.0,0.00023561,2]
[372962163,1752823853444,-309.52710723,0.00023561,2]
[372962164,1752823853453,-25000.0,0.00023584,2]
[372962165,1752823853463,-151.0,0.000236,9]
[372962166,1752823853473,-2715.09,0.00023635,4]
[372962167,1752823853482,-2055.93,0.00023649,2]
[372962168,1752823853491,-819.39482928,0.000237,30]
[372962169,1752823853501,-1070.21524862,0.00023728,9]
[372962170,1752823853510,-2715.09,0.00023735,6]
[372962171,1752823853520,-991.583453,0.00023753,3]
[372962172,1752823853530,-228.0,0.0002376,2]
[372962173,1752823853547,-9850.44153756,0.000238,2]
[372962174,1752823853633,-2715.09,0.00023835,3]
[372962175,1752823853643,-215.0738,0.00023857,2]
[372962176,1752823853654,-163.98184823,0.00023863,2]
[372962177,1752823853666,-2345.25903301,0.000239,2]
[372962178,1752823853676,-2715.09,0.00023935,2]
[372962179,1752823853685,-2304.97,0.00024,7]
[372962180,1752823853694,-17990.69,0.00024,7]
[372962181,1752823853704,-160.0,0.00024,7]
[372962182,1752823853713,-525.75194068,0.00024,7]
[372962183,1752823853723,-160.0,0.00024,7]
[372962184,1752823853733,-215.63268315,0.00024,7]
[372962185,1752823853743,-839.30593155,0.00024,7]
[372962186,1752823853752,-230.89969799,0.00024,7]
[372962187,1752823853762,-160.0,0.00024,7]
[372962188,1752823853772,-2715.09,0.00024035,6]
[372962189,1752823853783,-1070.21524862,0.00024038,10]
[372962190,1752823853792,-968.0,0.00024075,2]
[372962191,1752823853802,-647.0,0.00024075,2]
[372962192,1752823853811,-164.153176,0.000241,3]
[372962193,1752823853820,-25000.0,0.00024132,2]
[372962194,1752823853829,-2715.09,0.00024135,2]
[372962195,1752823853839,-163.98184823,0.00024164,2]
[372962196,1752823853851,-228.0,0.00024166,2]
[372962197,1752823853861,-23268.62089825,0.000242,2]
[372962198,1752823853870,-206.0,0.0002421,2]
[372962199,1752823853880,-228.0,0.00024215,2]
[372962200,1752823853891,-2715.09,0.00024235,3]
[372962201,1752823853901,-164.153176,0.00024285,2]
[372962202,1752823853910,-151.0,0.000243,7]
[372962203,1752823853920,-5273.19,0.000243,7]
[372962204,1752823853930,-2715.09,0.00024335,3]
[372962205,1752823853940,-1070.21524862,0.00024348,11]
[372962206,1752823853950,-1523.49574857,0.0002435,2]
[372962207,1752823853959,-6087.88901129,0.0002435,2]
[372962208,1752823853968,-4619.31525862,0.0002435,2]
[372962209,1752823853978,-318.0,0.00024429,7]
[372962210,1752823853988,-2715.09,0.00024435,2]
[372962211,1752823853998,-164.153176,0.00024446,3]
[372962212,1752823854007,-961.60473553,0.00024467,2]
[372962213,1752823854017,-314.0,0.00024491,2]
[372962214,1752823854027,-40911.99,0.000245,2]
[372962215,1752823854037,-314.0,0.00024524,2]
[372962216,1752823854046,-2715.09,0.00024535,6]
[372962217,1752823854056,-2536.49272084,0.00024551,2]
[372962218,1752823854066,-206.0,0.0002458,2]
[372962219,1752823854076,-314.0,0.00024594,2]
[372962220,1752823854086,-2715.09,0.00024635,2]
[372962221,1752823854095,-51231.29243706,0.0002465,2]
[372962222,1752823854105,-28558.31015152,0.00024651,2]
[372962223,1752823854114,-494.0,0.00024658,2]
[372962224,1752823854125,-1070.21524862,0.00024659,11]
[372962225,1752823854134,-314.0,0.00024696,2]
[372962226,1752823854144,-164.153176,0.000247,11]
[372962227,1752823854153,-164.153176,0.00024712,11]
[372962228,1752823854163,-164.153176,0.00024724,11]
[372962229,1752823854172,-2715.09,0.00024735,7]
[372962230,1752823854181,-93561.58254792,0.00024735,9]
[372962231,1752823854292,-351.27555648,0.00024735,9]
[372962232,1752823854452,-460.0,0.00016608,2]
[372962233,1752823854468,-460.0,0.00016707,2]
[372962234,1752823854487,-460.0,0.00016981,2]
[372962235,1752823854501,-460.0,0.00017255,2]
[372962236,1752823854512,-8193.85861134,0.00024735,9]
[372962237,1752823854626,-460.0,0.00016608,2]
[372962238,1752823854639,-460.0,0.00016882,2]
[372962239,1752823854675,-460.0,0.00017529,2]
[372962240,1752823854689,-460.0,0.00017803,2]
[372962241,1752823854703,-175.6,0.00018077,2]
[372962242,1752823854716,-6043.61168065,0.00024735,9]
[372962243,1752823854732,-791.2784889,0.00024735,9]
[372962244,1752823854748,-1688.98410491,0.00024735,9]
[372962245,1752823854824,-460.0,0.00016607,2]
[372962246,1752823854833,-185.03717849,0.00016607,2]
[372962247,1752823854843,-460.0,0.00016608,2]
[372962248,1752823854854,-431.28408128,0.00016881,2]
[372962249,1752823854863,-407.0,0.00023673,2]
[372962250,1752823854873,-160.0,0.00024,7]
[372962251,1752823854883,-3993.40874023,0.00024641,10]
[372962252,1752823854895,-1651.75125977,0.00024641,10]
[372962253,1752823854905,-6614.74332062,0.00024735,9]
[372962254,1752823854929,-402.09487479,0.00016608,2]
[372962255,1752823854939,-460.0,0.00016882,2]
[372962256,1752823854948,-2872.19510304,0.00024735,9]
[372962257,1752823870468,1335.89819011,0.00025518,50]
[372962258,1752823875579,150.0,0.00015486,2]
[372962263,1752824072195,308.07167412,0.00016013,2]
[372962264,1752824169548,23379.1014741,0.00015532,2]
[372962266,1752824429836,5000.0,0.0001611,2]
[372962267,1752824641135,5000.0,0.0001611,2]
[372962268,1752824658055,3649.51030068,0.0001611,2]
[372962269,1752824674239,184.84300448,0.00016012,2]
[372962270,1752824702037,266.321327,0.00013699,2]
[372962271,1752824704929,831.64165606,0.0001611,2]
[372962273,1752824752109,-150.7558404,0.00016407,2]
[372962274,1752824836094,-332.98853533,0.00016407,2]
[372962275,1752824836116,-300.0,0.00016504,2]
[372962276,1752824836136,-283.2432085,0.00016505,2]
[372962286,1752825032815,-291.36496844,0.00016406,2]
[372962287,1752825032825,-1081.0,0.00016504,2]
[372962288,1752825032840,-300.0,0.00016504,2]
[372962289,1752825032850,-500.0,0.00016505,2]
[372962290,1752825032862,-500.0,0.00016505,2]
[372962291,1752825032871,-500.0,0.00016505,2]
[372962292,1752825032882,-500.0,0.00016505,2]
[372962293,1752825032892,-140.07300417,0.00016505,2]
[372962294,1752825032904,-363.2836694,0.00016505,2]
[372962295,1752825032913,-500.0,0.00016505,2]
[372962296,1752825032923,-500.0,0.00016505,2]
[372962297,1752825032932,-500.0,0.00016505,2]
[372962298,1752825032942,-500.0,0.00016505,2]
[372962299,1752825032952,-458.52570955,0.00016505,2]
[372962300,1752825032961,-392.0,0.00016505,2]
[372962301,1752825032971,-500.0,0.00016505,2]
[372962302,1752825032980,-390.0531959,0.00016505,2]
[372962303,1752825032990,-219.84361938,0.00016505,2]
[372962304,1752825032999,-588.60721694,0.00016505,2]
[372962305,1752825033010,-460.0,0.00016505,2]
[372962306,1752825033020,-460.0,0.00016505,2]
[372962307,1752825033029,-460.0,0.00016505,2]
[372962308,1752825033039,-460.0,0.00016505,2]
[372962309,1752825033048,-460.95949171,0.00016505,2]
[372962310,1752825033058,-460.0,0.00016505,2]
[372962311,1752825033068,-460.0,0.00016506,2]
[372962312,1752825033078,-460.0,0.00016506,2]
[372962313,1752825033088,-461.0899413,0.00016506,2]
[372962315,1752825033101,-460.42510216,0.00016506,2]
[372962316,1752825033113,-460.0,0.00016506,2]
[372962319,1752825033123,-460.0,0.00016506,2]
[372962321,1752825033133,-406.92797081,0.00016506,2]
[372962323,1752825033143,-460.0,0.00016506,2]
[372962325,1752825033157,-426.2930447,0.00016506,2]
[372962327,1752825033166,-460.0,0.00016506,2]
[372962329,1752825033176,-460.0,0.00016506,2]
[372962331,1752825033186,-460.0,0.00016506,2]
[372962333,1752825033195,-460.0,0.00016506,2]
[372962335,1752825033206,-460.0,0.00016506,2]
[372962337,1752825033216,-509.99191715,0.00016506,2]
[372962338,1752825033226,-561.73503318,0.00016506,2]
[372962340,1752825033235,-460.0,0.00016506,2]
[372962342,1752825033245,-189.0141862,0.00016506,2]
[372962345,1752825033257,-270.9858138,0.00016506,2]
[372962347,1752825033266,-460.0,0.00016506,2]
[372962349,1752825033275,-460.0,0.00016506,2]
[372962351,1752825033285,-460.0,0.00016506,2]
[372962353,1752825033294,-934.91,0.00016506,2]
[372962355,1752825033304,-460.0,0.00016506,2]
[372962356,1752825033313,-588.64146714,0.00016506,2]
[372962358,1752825033323,-460.0,0.00016506,2]
[372962360,1752825033333,-460.0,0.00016506,2]
[372962362,1752825033342,-323.02491906,0.00016506,2]
[372962365,1752825033354,-136.97508094,0.00016506,2]
[372962367,1752825033364,-460.0,0.00016506,2]
[372962369,1752825033374,-460.0,0.00016506,2]
[372962371,1752825033383,-460.0,0.00016506,2]
[372962373,1752825033393,-460.0,0.00016506,2]
[372962375,1752825033402,-460.0,0.00016506,2]
[372962377,1752825033411,-460.0,0.00016506,2]
[372962379,1752825033420,-460.0,0.00016506,2]
[372962381,1752825033430,-460.0,0.00016506,2]
[372962383,1752825033439,-463.58863773,0.00016506,2]
[372962384,1752825033448,-460.0,0.00016506,2]
[372962386,1752825033457,-460.0,0.00016506,2]
[372962388,1752825033467,-460.0,0.00016506,2]
[372962390,1752825033476,-500.0,0.00016506,2]
[372962392,1752825033485,-177.22217953,0.00016506,2]
[372962394,1752825033495,-500.0,0.00016506,2]
[372962397,1752825033505,-500.0,0.00016506,2]
[372962399,1752825033514,-500.0,0.00016506,2]
[372962400,1752825033523,-390.39080847,0.00016506,2]
[372962403,1752825033536,-109.60919153,0.00016506,2]